Cogmind - Beta 15 @@@ ROGUE MODE // 2025.10.10 @ 12:29:50 Player: beans Result: Destroyed by DAS Turret with DAS Cannon Performance ------------- Evolutions (1) 500 Regions Visited (5) 1000 Robots Destroyed (57) 285 Value Destroyed (1468) 1468 Prototype IDs (23) 460 Alien Tech Used (0) 0 Bonus (219) 219 TOTAL SCORE: 3932 Bonus ------- High Alert Combat Kills 48 Aligned with FarCom 300 Friendly Fire -129 Cogmind --------- Core Integrity 0/400 Matter 57/300 Energy 88/100 System Corruption 0% Temperature Cool (11) Movement Core (500) Ox9 Location -9/Exiles Parts ------- > --- POWER (1) -------- (None) > --- PROPULSION (2) --- (None) > --- UTILITY (3) ------ Large Storage Unit > --- WEAPON (3) ------- Improved Light Cannon Improved Light Cannon > --- INVENTORY (15) --- Light Treads Light Treads Light Treads Light Treads Targeting Computer Phase Shifter Assault Rifle Assault Rifle Bore Cannon Rocket Launcher Peak State ------------ > --- POWER ------------ Fission Core > --- PROPULSION ------- Light Treads Light Treads > --- UTILITY ---------- Large Storage Unit Targeting Computer Hardened Light Armor Plating > --- WEAPON ----------- Heavy Assault Rifle Heavy Assault Rifle Bore Cannon > --- INVENTORY -------- Light Treads Light Treads Light Treads Light Treads Light Treads Targeting Computer Phase Shifter Assault Rifle Assault Rifle Heavy Assault Rifle Heavy Assault Rifle Improved Light Cannon Improved Light Cannon Improved Light Cannon Rocket Launcher [Rating: 22] Favorites ----------- Power Fission Core Power Core Fission Core Propulsion Light Treads Treads Light Treads Utility Targeting Computer Storage Large Storage Unit Processor Targeting Computer Protection Hardened Light Armor Plating Weapon Heavy Assault Rifle Ballistic Gun Heavy Assault Rifle Ballistic Cannon Bore Cannon Launcher Rocket Launcher Build | -11 -10 -10 -9 -9 -9 ------- Run | Yrd Mat Min Mat Min Exi Slots Evolved 2 | . . . 2 . . Power . | . . . . . . Propulsion . | . . . . . . Utility 1 | . . . 1 . . Weapon 1 | . . . 1 . . Parts Attached 26 | 3 6 2 12 1 2 Power 1 | . . . 1 . . Engine . | . . . . . . Core 1 | . . . 1 . . Reactor . | . . . . . . Propulsion 5 | 2 . . 3 . . Treads 5 | 2 . . 3 . . Leg . | . . . . . . Wheel . | . . . . . . Hover . | . . . . . . Flight . | . . . . . . Utility 5 | . 4 . 1 . . Device . | . . . . . . Storage 2 | . 2 . . . . Processor 2 | . 2 . . . . Hackware . | . . . . . . Protection 1 | . . . 1 . . Artifact . | . . . . . . Weapon 15 | 1 2 2 7 1 2 Energy Gun . | . . . . . . Energy Cannon . | . . . . . . Ballistic Gun 9 | 1 2 . 5 1 . Ballistic Cannon 5 | . . 2 1 . 2 Launcher 1 | . . . 1 . . Special Weapon . | . . . . . . Impact Weapon . | . . . . . . Slashing Weapon . | . . . . . . Piercing Weapon . | . . . . . . Special Melee Weapon . | . . . . . . Unidentified Prototypes . | . . . . . . Parts Lost 14 | . 1 1 3 . 9 Power 1 | . . . . . 1 Propulsion 3 | . . . 1 . 2 Utility 2 | . . . . . 2 Weapon 8 | . 1 1 2 . 4 Highest Loss Streak 9 | . 1 1 1 . 9 To Critical Strikes 1 | . . . . . 1 Average Backups 11 | . 5 10 14 13 12 Power . | . . . . . . Propulsion 3 | . 2 4 4 4 4 Utility 1 | . . 1 2 2 2 Weapon 6 | . 3 4 7 7 6 Tool/Special . | . . . . . . Unused Backups 9 | . . . 2 . 7 Power . | . . . . . . Propulsion 4 | . . . . . 4 Utility 2 | . . . . . 2 Weapon 3 | . . . 2 . 1 Tool/Special . | . . . . . . Average Slot Usage (%) 86 | . 77 85 85 100 96 Core 6 | . . . 8 11 10 Treads 23 | . 28 28 21 22 20 Storage 10 | . 8 14 11 11 11 Processor 12 | . 16 14 11 11 10 Protection 4 | . . . 3 11 10 Ballistic Gun 23 | . 23 14 18 33 31 Ballistic Cannon 5 | . . 13 8 . 1 Peak Build Rating 22 | 3 7 12 22 19 19 Average Rating 14 | 2 5 9 17 19 18 On Entrance 9 | . 3 6 12 19 19 Naked Turns . | . . . . . . Heaviest Build 46 | 2 24 31 46 44 44 Greatest Support 40 | 40 40 40 40 40 40 Greatest Overweight (x) 2 | . . . 2 1 1 Average Overweight (x) . | . . . . 1 1 Largest Inventory Capacity 15 | 5 15 15 15 15 15 Average Capacity 13 | 5 9 15 15 15 15 Most Carried 15 | 3 10 12 15 13 13 Average Carried 11 | . 5 10 14 13 12 Final Capacity 15 | 5 15 15 15 15 15 Final Carried 13 | . 9 12 13 13 10 Class Distribution -------------------- 47% | Scavenger-Gunner 41% | Mutant 5% | Gunner 5% | Scavenger-Mutant Dominant Class ---------------- Mutant | -10/Materials Mutant | -10/Mines Scavenger-Gunner | -9/Materials Scavenger-Gunner | -9/Mines Scavenger-Gunner | -9/Exiles Resources | -11 -10 -10 -9 -9 -9 ----------- Run | Yrd Mat Min Mat Min Exi Matter Collected 1438 | 157 338 170 759 . 14 Remotely . | . . . . . . Salvage Created 1852 | . 463 169 1220 . . Parts 128 | . 28 19 81 . . Haulers Intercepted 3 | . 1 . 2 . . Recyclers Shooed 1 | . . 1 . . . Parts Field Recycled . | . . . . . . Retrieved Matter . | . . . . . . Parts Self-Destructed . | . . . . . . Prevented . | . . . . . . Kills | -11 -10 -10 -9 -9 -9 ------- Run | Yrd Mat Min Mat Min Exi Combat Hostiles Destroyed 40 | . 8 7 25 . . Guns 20 | . 8 2 10 . . Cannons 13 | . . 5 8 . . AOE 7 | . . . 7 . . Classes Destroyed 12 | . 4 3 5 . . Worker 6 | . 1 2 3 . . Builder 3 | . . 1 2 . . Tunneler 1 | . 1 . . . . Hauler 3 | . 1 . 2 . . Recycler 1 | . . . 1 . . Mechanic 1 | . . . 1 . . Watcher 3 | . . . 3 . . Swarmer 7 | . . 4 3 . . Grunt 23 | . 8 2 13 . . Duelist 1 | . . . 1 . . Sentry 8 | . . . 8 . . Assembled 1 | . . 1 . . . Best Kill Streak 14 | . 2 6 14 . . Combat Bots Only 5 | . 2 3 5 . . Max Kills in Single Turn 5 | . 1 1 5 . . Gunslinging . | . . . . . . Exploded 4 | . . . 4 . . Melee . | . . . . . . Uniques/NPCs Destroyed . | . . . . . . Combat | -11 -10 -10 -9 -9 -9 -------- Run | Yrd Mat Min Mat Min Exi Hostile Shots Fired 228 | . 47 29 91 . 61 Missed 46 | . 14 3 25 . 4 Hits 182 | . 33 26 66 . 57 Melee 4 | . . 2 2 . . Projectile 178 | . 33 24 64 . 57 Critical Strikes 26 | . . . 6 . 20 Damage Taken 2892 | . 422 296 954 . 1220 Core 557 | . 122 34 220 . 181 Absorbed by Shields . | . . . . . . Core Remaining (%) 68 | 100 . 37 . . . Volleys Fired 147 | . 43 21 63 . 20 Largest 3 | . 2 2 3 . 3 Hottest 104 | . 40 68 104 . 99 Shots Fired 324 | . 70 42 155 . 57 Gun 231 | . 70 22 93 . 46 Cannon 85 | . . 20 54 . 11 Launcher 8 | . . . 8 . . Special . | . . . . . . Kinetic 316 | . 70 42 147 . 57 Thermal . | . . . . . . Explosive 8 | . . . 8 . . Electromagnetic . | . . . . . . Robot Hit Streak 18 | . 9 8 9 . 18 Robot Miss Streak 6 | . 2 2 6 . 2 Penetration Max 1 | . . . 1 . . Secondary Targets 1 | . 1 . . . . Max Gunslinging Chain 1 | . 1 . . . . Shots Hit Robots 209 | . 54 24 81 . 50 Core Hits 98 | . 22 15 49 . 12 Critical Kills 7 | . . 2 5 . . Critical Parts Destroyed 6 | . . . 6 . . Critical Strikes 13 | . . 2 11 . . Destroy 13 | . . 2 11 . . Melee Attacks . | . . . . . . Impact . | . . . . . . Slashing . | . . . . . . Piercing . | . . . . . . Sneak Attacks . | . . . . . . Combat Hostiles . | . . . . . . Follow-up Attacks . | . . . . . . Damage Inflicted 4011 | . 700 444 2077 . 790 Guns 2300 | . 700 167 798 . 635 Cannons 952 | . . 277 520 . 155 Explosions 759 | . . . 759 . . Melee . | . . . . . . Ramming . | . . . . . . Kinetic 3252 | . 700 444 1318 . 790 Thermal . | . . . . . . Explosive 759 | . . . 759 . . Electromagnetic . | . . . . . . Impact . | . . . . . . Slashing . | . . . . . . Piercing . | . . . . . . Highest Corruption . | . . . . . . Average Corruption . | . . . . . . Corruption Purged . | . . . . . . Corruption Blocked . | . . . . . . Overload Shots . | . . . . . . Overflow Damage 12 | . . . 12 . . Projectiles . | . . . . . . Explosions 12 | . . . 12 . . Melee . | . . . . . . Knockbacks 8 | . . 1 3 . 4 Impact . | . . . . . . Kinetic 8 | . . 1 3 . 4 Secondary . | . . . . . . Self-Inflicted Damage 25 | . . . 25 . . Shots 1 | . . . 1 . . Rammed . | . . . . . . Targets Rammed . | . . . . . . Kicked . | . . . . . . Crushed . | . . . . . . Highest Temperature 227 | . 3 6 227 . 186 Average Temperature 61 | . 3 4 52 . 96 Received Heat Transfer 729 | . 249 63 417 . . Siege Activations . | . . . . . . Martial Activations . | . . . . . . Shielding Activations . | . . . . . . Robots Disrupted . | . . . . . . Combat Hostiles . | . . . . . . Robots Corrupted . | . . . . . . Combat Hostiles . | . . . . . . Parts Fried . | . . . . . . Impact Corruptions . | . . . . . . Robots Melted . | . . . . . . Combat Hostiles . | . . . . . . Parts Melted . | . . . . . . Heat Transferred . | . . . . . . Parts Sabotaged . | . . . . . . Parts Stolen . | . . . . . . Parts Stripped . | . . . . . . Power Chain Reactions . | . . . . . . Alert | -11 -10 -10 -9 -9 -9 ------- Run | Yrd Mat Min Mat Min Exi Maximum Alert Level 2 | . . . 2 . . Low Security (%) 70 | 100 100 100 41 100 . Level 1 23 | . . . 45 . . Level 2 6 | . . . 13 . . Level 3 . | . . . . . . Level 4 . | . . . . . . Level 5 . | . . . . . . High Security . | . . . . . . Max Security . | . . . . . . Peak Influence 430 | . 63 93 430 162 . Initial 162 | . . 18 9 162 . Average 145 | . 16 54 246 136 . Influence Increases 1188 | . 208 146 834 . . Destroy 0b10 Robot/C 780 | . 160 120 500 . . Destroy 0b10 Robot/NC 90 | . 15 15 60 . . Destroy Leader 182 | . 32 10 140 . . Disable Machine 45 | . . . 45 . . Destroy Structure 76 | . 1 1 74 . . Lose Combat Pursuer 15 | . . . 15 . . Influence Decreases 1188 | . 161 169 440 316 102 Entered New Map 402 | . . 29 15 256 102 Time Decay 736 | . 151 130 395 60 . Lost Part 50 | . 10 10 30 . . Squads Dispatched 1 | . 1 . . . . Investigation . | . . . . . . Extermination . | . . . . . . Reinforcement 1 | . 1 . . . . Assault . | . . . . . . Garrison . | . . . . . . Intercept . | . . . . . . Searches Triggered . | . . . . . . Construction Impeded . | . . . . . . Haulers Reinforced . | . . . . . . Active Scanning Responses . | . . . . . . Cargo Convoy Interrupts . | . . . . . . Stealth | -11 -10 -10 -9 -9 -9 --------- Run | Yrd Mat Min Mat Min Exi Distress Signals 9 | . 2 1 6 . . Communications Jammed . | . . . . . . Distress Signals . | . . . . . . Times Spotted 81 | . 18 7 35 . 21 Peak Tracking Total 6 | . 4 2 4 . 6 Tactical Retreats 4 | . . . 1 . 3 Traps | -11 -10 -10 -9 -9 -9 ------- Run | Yrd Mat Min Mat Min Exi Traps Triggered . | . . . . . . Indirectly . | . . . . . . Trap Hack Attempts . | . . . . . . Triggered . | . . . . . . Disarmed . | . . . . . . Reprogrammed . | . . . . . . Reused . | . . . . . . Traps Extracted . | . . . . . . Installed . | . . . . . . Triggered . | . . . . . . Machines | -11 -10 -10 -9 -9 -9 ---------- Run | Yrd Mat Min Mat Min Exi Machines Disabled 5 | . . . 3 . 2 Max in Single Turn 2 | . . . 1 . 2 Machines Repaired . | . . . . . . Machines Dismantled . | . . . . . . Machines Sabotaged . | . . . . . . Overloaded Fab Kills . | . . . . . . Hacking | -11 -10 -10 -9 -9 -9 --------- Run | Yrd Mat Min Mat Min Exi Machines Accessed 1 | . . . . . 1 Terminals . | . . . . . . Fabricators . | . . . . . . Repair Stations . | . . . . . . Recycling Units . | . . . . . . Scanalyzers . | . . . . . . Garrison Access . | . . . . . . Total Hacks 1 | . . . . . 1 Successful 1 | . . . . . 1 Failed . | . . . . . . Catastrophic . | . . . . . . Database Lockouts . | . . . . . . Manual 2 | . . . . . 2 Terminals . | . . . . . . Fabricators . | . . . . . . Repair Stations . | . . . . . . Recycling Units . | . . . . . . Scanalyzers . | . . . . . . Garrison Access . | . . . . . . Terminal Hacks 1 | . . . . . 1 Proto ID Catalog 1 | . . . . . 1 Fabricator Hacks . | . . . . . . Repair Station Hacks . | . . . . . . Recycling Unit Hacks . | . . . . . . Scanalyzer . | . . . . . . Garrison Access Hacks . | . . . . . . Unauthorized Hacks . | . . . . . . Terminals . | . . . . . . Fabricators . | . . . . . . Repair Stations . | . . . . . . Recycling Units . | . . . . . . Scanalyzers . | . . . . . . Garrison Access . | . . . . . . Data Cores Recovered . | . . . . . . Used . | . . . . . . Hacking Detections . | . . . . . . Full Trace Events . | . . . . . . Feedback Events . | . . . . . . Feedback Blocked . | . . . . . . Robot Schematics Acquired . | . . . . . . Robots Built . | . . . . . . Authchips . | . . . . . . Time . | . . . . . . Total Robot Build Rating . | . . . . . . Part Schematics Acquired . | . . . . . . Parts Built . | . . . . . . Authchips . | . . . . . . Time . | . . . . . . Total Part Build Rating . | . . . . . . Parts Repaired . | . . . . . . Time . | . . . . . . Parts Recycled . | . . . . . . Recycled Matter . | . . . . . . Retrieved Matter . | . . . . . . Retrieved Components . | . . . . . . Parts Scanalyzed . | . . . . . . Part Schematics Acquired . | . . . . . . Parts Damaged . | . . . . . . Bothacking | -11 -10 -10 -9 -9 -9 ------------ Run | Yrd Mat Min Mat Min Exi Used RIF Installer . | . . . . . . Robots Hacked . | . . . . . . Non-combat . | . . . . . . Combat . | . . . . . . Robot Hacks Applied . | . . . . . . Relay Couplers Released . | . . . . . . Fabnet Peak Effective % . | . . . . . . Robots Rewired . | . . . . . . Allies Hacked . | . . . . . . Hacks Repelled . | . . . . . . Allies | -11 -10 -10 -9 -9 -9 -------- Run | Yrd Mat Min Mat Min Exi Total Allies . | . . . . . . Largest Group . | . . . . . . Highest-Rated Group . | . . . . . . Highest-Rated Ally . | . . . . . . Total Orders . | . . . . . . Ally Attacks . | . . . . . . Total Damage . | . . . . . . Kills . | . . . . . . Allies Corrupted . | . . . . . . Allies Melted . | . . . . . . Intel | -11 -10 -10 -9 -9 -9 ------- Run | Yrd Mat Min Mat Min Exi Active Infowar (turns) . | . . . . . . Robot Analysis Total . | . . . . . . Derelict Logs Recovered . | . . . . . . Drone Launches . | . . . . . . Drone Recoveries . | . . . . . . Exploration | -11 -10 -10 -9 -9 -9 ------------- Run | Yrd Mat Min Mat Min Exi Turns Passed 2531 | 36 555 267 1014 120 539 Spaces Moved 1011 | 28 259 122 355 50 197 Core 12 | 12 . . . . . Treads 999 | 16 259 122 355 50 197 Legs . | . . . . . . Wheels . | . . . . . . Hover . | . . . . . . Flight . | . . . . . . Fastest Speed 50 | 50 160 160 160 240 240 Average Speed 199 | 112 160 160 219 240 240 Slowest Speed 320 | 160 160 160 320 240 240 Overloaded Moves . | . . . . . . Propulsion Burnouts . | . . . . . . Robots Hopped . | . . . . . . Potential Cave-ins . | . . . . . . Cave-ins Triggered . | . . . . . . Exploration Rate (%) 33 | 3 41 36 50 16 54 Regions Visited 5 Branch Regions 3 Pre-discovered Areas . | . . . . . . Known Exits Taken . | . . . . . . Unknown Exits Taken 5 | 1 1 1 1 1 . Scrap Searched . | . . . . . . Spaces Dug . | . . . . . . Terrain Destroyed 100 | . . 1 99 . . Melee . | . . . . . . Projectile 26 | . . 1 25 . . AOE 74 | . . . 74 . . Terrain Rammed . | . . . . . . Walls Destroyed . | . . . . . . Machines Disabled . | . . . . . . Actions | -11 -10 -10 -9 -9 -9 --------- Run | Yrd Mat Min Mat Min Exi Total 1243 | 33 330 151 459 50 220 Wait 19 | . 7 3 9 . . Move 1006 | 27 258 121 354 49 197 Hop . | . . . . . . Pick Up 34 | 3 14 4 13 . . Fast Attach 3 | . 1 . 2 . . Attach 17 | 3 4 1 6 . 3 Detach . | . . . . . . Swap 8 | . 1 1 5 1 . Drop 9 | . 2 . 7 . . Fire 147 | . 43 21 63 . 20 Melee . | . . . . . . Ram . | . . . . . . Kick . | . . . . . . Crush . | . . . . . . Escape Stasis . | . . . . . . Rewire . | . . . . . . Trap . | . . . . . . Miscellaneous . | . . . . . . Route ------- -11/Scrapyard -10/Materials -10/Mines -9/Materials (discovered 2 exits: [*Mat] / [*Min]) -9/Mines (discovered 3 exits: [*Mat] / *Exi / [*Zio]) -9/Exiles History --------- Turn | Location | Event 4 | -11/Scrapyard | Discovered new exit (range 16) 37 | -11/Scrapyard | Entered Materials 309 | -10/Materials | Build established: Mutant 563 | -10/Materials | Discovered new exit (range 13) 592 | -10/Materials | Entered Mines 593 | -10/Mines | Assembled infested the area 598 | -10/Mines | Assisted by a Guerilla fighting off Assembled 694 | -10/Mines | Core integrity fell below 50% 841 | -10/Mines | Discovered new exit (range 9) 859 | -10/Mines | Entered Materials 859 | -9/Materials | Evolved 2 slots: Utility x1, Weapon x1 1365 | -9/Materials | Discovered new exit (range 12) 1521 | -9/Materials | Core integrity fell below 50% 1575 | -9/Materials | Build established: Scavenger-Gunner 1854 | -9/Materials | Discovered new exit (range 7) 1873 | -9/Materials | Entered Mines 1874 | -9/Mines | A Derelict revealed a hidden shortcut to a safe place 1933 | -9/Mines | Discovered new exit (range 13) 1983 | -9/Mines | Deemed a non-threat by the Exiles lab entrance 1983 | -9/Mines | Discovered new exit (range 5) 1993 | -9/Mines | Entered Exiles 2053 | -9/Exiles | Met 8R-AWN 2092 | -9/Exiles | Met EX-HEX 2159 | -9/Exiles | Met EX-BIN 2185 | -9/Exiles | Aligned with FarCom system 2188 | -9/Exiles | Given EX-Vault access code 2245 | -9/Exiles | Opened EX-Vault 2308 | -9/Exiles | Warned to stay clear of 0b10 Research branches 2342 | -9/Exiles | Exiles lab attacked by MAIN.C 2467 | -9/Exiles | Attacked by the Exiles 2518 | -9/Exiles | Core integrity fell below 20% 2532 | -9/Exiles | Destroyed by DAS Turret with DAS Cannon Last Messages --------------- Penetrated by HV Slug. 8R-AWN knocked back. Knocked back. Penetrated by HV Slug. HV Slug penetrates Machine. Machine disabled. HV Slug penetrates Wall. 8R-AWN knocked back. Penetrated by HV Slug. HV Slug penetrates Wall. 8R-AWN knocked back. Knocked back. Acquired 14 matter. Penetrated by HV Slug. HV Slug penetrates Wall. Penetrated by HV Slug. HV Slug penetrates Wall. Imp. Light Cannon destroyed. Knocked back. 8R-AWN knocked back. Map ----- +----------------------------------------------------+ | ???????????????????????????????????????""" ## | | ?????????????????????????????????????#""X" | | ?????????????????????????????????????#" | | ?????????????????????????????????????#" ## | | ?????????????????????????????????????#""""""?# | | ???????????????????????????????????????"###??# | | ?????????????????????????????????????????????# | | ?????????????????????????????????????????????# | | ????????????????????????????????????????????## | | ????????????????????????????????????????????#" | | ????????????????????????????????????????????#" | | ????????????# ??????????????????????????????#" | | ????????????# ?????????????????????????????#" | | ???????????## ?????????????????????????????#" | | ????? #???#" ??????????????????"??????????#" | | ????? ?##" ???????????????? """????????## | | ???? #"" ???????????????" ?????????# | | ????? ??????????????"" ?????????#" | | ?????? #?????????????"" "?????????#" | | ??????# "????????????? ""?????????#" | | ??????? ###???????????" "?????????##" | | ????????? ##??????????# #????????##"" | | ????????????#"" ######???### ###?######"" | | ?????????????#" ""#####X# #"###""""""" | | ?????????????#" % """""" " "" | | ?????????????#"# @ "" """ " | | ?????????????#?## %= " " | | ????????????????### ***= % | | ?????????? ;;=%%== %% | | ?????????????###### ##=% % | | ??????????????????#??## | | ??????????????????????##" % g | | ???????????????????????#"" """""" | | ???????????????????????#" ######"" | | ??????????????????????#"" ""##????### | | ??????????????????????#""" """##???????? | | ??????????????????????""" t """##????????? | | ??????????????????????""" ""#?????????? | | ??????????????????????"" ##?????????? | | ??????????????????????""" ?????????? | | ??????????????????????"" ????????? | | ???????????????????????"" ???????? | | ??????????????????????#"""" ???????? | | ???????????????????????? ????????? | | ?????????????????????????? ??????????? | | ??????????????????????????"" ????????????? | | ???????????????????????????? ???????????????? | | ?????????????????????????????????????????????????? | | ?????????????????????????????????????????????????? | | ?????????????????????????????????????????????????? | +----------------------------------------------------+ Best States ------------- Heat Dissipation 28 Energy Generation 18 Energy Capacity 310 Matter Stores 300 Matter Capacity 300 Sight Range 16 Terrain Scan Density 10 Armor Coverage 150 Evasion (%) 50 Targeting Accuracy 10 Recoil Reduction 2 Item Schematics ----------------- None Robot Schematics ------------------ None Fabricated ------------ Nothing Repaired ---------- Nothing Alien Tech Used ----------------- None Achievements -------------- None Challenges ------------ None Game ------ Seed ParticleResetDrive Manual? 0 Play Time 00:13:37 Cumulative 178.7 hours Start 2025.10.10 @ 12:18:16 End 2025.10.10 @ 12:29:50 Sessions 1 Manual Loads 0 Difficulty Rogue Special Mode None Game No. 549 Rogue 548 Adventurer 1 Explorer 0 Win Type - Total 0 Types 0/0/0/0/0/0/0/0/0/0 Lore% 61 Gallery% 58 Achievement% 44 Wizard Run 0 Options --------- Layout 1 ASCII 0 Keyboard 0 Movement Mouse Keybinds 0 Fullscreen 1 Font 24/Smallcaps Map View 50x35 Zoom Use 0% Tactical HUD 0 Map Filters NONE Filters NONE Steam 1 RUN: 1cb1c88c-6218-4341-9cda-9e31683d9448